[Event "Titled Tuesday Blitz May 30 Late 2023"]
[White "Bazeev, German"]
[Black "Gubajdullin, Alexei"]
[WhiteFideId "24119350"]
[BlackFideId "4141202"]
[WhiteElo "2466"]
[BlackElo "2279"]
[Result "0-1"]
[Round "06"]
[TimeControl "180+2"]
[Date "2023.05.31"]
[WhiteClock "0:01:40"]
[BlackClock "0:01:14"]

1. c4 {[%clk 0:02:36]}  g6 {[%clk 0:02:58]} 2. Nc3 {[%clk 0:02:36]}  Bg7 {[%clk 0:02:58]} 3. h4 {[%clk 0:02:36]}  h6 {[%clk 0:02:54]} 4. g3 {[%clk 0:02:35]}  c5 {[%clk 0:02:53]} 5. Bg2 {[%clk 0:02:36]}  d6 {[%clk 0:02:52]} 6. Nh3 {[%clk 0:02:36]}  e5 {[%clk 0:02:51]} 7. a3 {[%clk 0:02:29]}  Ne7 {[%clk 0:02:49]} 8. b4 {[%clk 0:02:29]}  Nbc6 {[%clk 0:02:47]} 9. b5 {[%clk 0:02:29]}  Nd4 {[%clk 0:02:46]} 10. d3 {[%clk 0:02:26]}  Rb8 {[%clk 0:02:41]} 11. Bd2 {[%clk 0:02:25]}  Bg4 {[%clk 0:02:40]} 12. Rb1 {[%clk 0:02:20]}  Qd7 {[%clk 0:02:24]} 13. Qc1 {[%clk 0:02:16]}  Kf8 {[%clk 0:01:53]} 14. Ng1 {[%clk 0:02:13]}  Kg8 {[%clk 0:01:52]} 15. e3 {[%clk 0:02:12]}  Ndf5 {[%clk 0:01:48]} 16. Nge2 {[%clk 0:02:04]}  Bxe2 {[%clk 0:01:22]} 17. Nxe2 {[%clk 0:02:05]}  Kh7 {[%clk 0:01:22]} 18. g4 {[%clk 0:02:04]}  Nxe3 {[%clk 0:01:17]} 19. Bxe3 {[%clk 0:02:00]}  Qxg4 {[%clk 0:01:17]} 20. Bh3 {[%clk 0:01:51]}  Qf3 {[%clk 0:01:16]} 21. O-O {[%clk 0:01:40]}  Qxh3 {[%clk 0:01:14]} 0-1


[Site "https://www.chess.com"]

[Event "Titled Tuesday Blitz May 30 Late 2023"]
[White "Hossain, Enamul"]
[Black "Gorovets, Andrey"]
[WhiteFideId "10200649"]
[BlackFideId "13504037"]
[WhiteElo "2433"]
[BlackElo "2459"]
[Result "0-1"]
[Round "06"]
[TimeControl "180+2"]
[Date "2023.05.31"]
[WhiteClock "0:00:04"]
[BlackClock "0:00:25"]

1. e4 {[%clk 0:03:00]}  c5 {[%clk 0:02:57]} 2. Nf3 {[%clk 0:03:00]}  e6 {[%clk 0:02:57]} 3. b3 {[%clk 0:02:55]}  Nc6 {[%clk 0:02:47]} 4. Bb2 {[%clk 0:02:54]}  a6 {[%clk 0:02:48]} 5. c4 {[%clk 0:02:43]}  Nf6 {[%clk 0:02:35]} 6. e5 {[%clk 0:02:39]}  Ng4 {[%clk 0:02:35]} 7. h3 {[%clk 0:02:38]}  Nh6 {[%clk 0:02:35]} 8. g4 {[%clk 0:02:36]}  d5 {[%clk 0:02:27]} 9. exd6 {[%clk 0:02:33]}  f6 {[%clk 0:02:18]} 10. Bg2 {[%clk 0:02:27]}  e5 {[%clk 0:02:17]} 11. Nc3 {[%clk 0:02:21]}  Nf7 {[%clk 0:02:04]} 12. Nd5 {[%clk 0:02:02]}  Bxd6 {[%clk 0:01:57]} 13. d3 {[%clk 0:01:57]}  Be6 {[%clk 0:01:55]} 14. Nd2 {[%clk 0:01:56]}  O-O {[%clk 0:01:36]} 15. Qe2 {[%clk 0:01:48]}  Re8 {[%clk 0:01:23]} 16. O-O {[%clk 0:01:47]}  Ne7 {[%clk 0:01:17]} 17. Nxe7+ {[%clk 0:01:31]}  Rxe7 {[%clk 0:01:18]} 18. Ne4 {[%clk 0:01:30]}  Bd7 {[%clk 0:01:11]} 19. Qe3 {[%clk 0:01:10]}  Bc6 {[%clk 0:01:02]} 20. Nxc5 {[%clk 0:00:58]}  Bxg2 {[%clk 0:01:00]} 21. Kxg2 {[%clk 0:00:59]}  Ng5 {[%clk 0:00:58]} 22. Ne4 {[%clk 0:00:58]}  Ne6 {[%clk 0:00:57]} 23. Rad1 {[%clk 0:00:41]}  Bc7 {[%clk 0:00:46]} 24. d4 {[%clk 0:00:32]}  exd4 {[%clk 0:00:45]} 25. Bxd4 {[%clk 0:00:32]}  Nf4+ {[%clk 0:00:40]} 26. Kh1 {[%clk 0:00:31]}  Qe8 {[%clk 0:00:33]} 27. Rfe1 {[%clk 0:00:28]}  Qc6 {[%clk 0:00:32]} 28. Qf3 {[%clk 0:00:20]}  Rae8 {[%clk 0:00:30]} 29. Bxf6 {[%clk 0:00:09]}  Rxe4 {[%clk 0:00:26]} 30. Rxe4 {[%clk 0:00:07]}  Rxe4 {[%clk 0:00:27]} 31. Bg5 {[%clk 0:00:04]}  Re1+ {[%clk 0:00:25]} 0-1


[Site "https://www.chess.com"]

[Event "Titled Tuesday Blitz May 30 Late 2023"]
[White "Goltsev, Dmitry"]
[Black "Bayo Milagro, Alvaro"]
[WhiteFideId "24176710"]
[BlackFideId "22275240"]
[WhiteElo "2356"]
[BlackElo "2270"]
[Result "0-1"]
[Round "06"]
[TimeControl "180+2"]
[Date "2023.05.31"]
[WhiteClock "0:00:53"]
[BlackClock "0:00:41"]

1. e4 {[%clk 0:02:59]}  e5 {[%clk 0:03:00]} 2. Nf3 {[%clk 0:02:59]}  Nc6 {[%clk 0:03:00]} 3. Bb5 {[%clk 0:02:59]}  a6 {[%clk 0:03:00]} 4. Ba4 {[%clk 0:02:59]}  Nf6 {[%clk 0:03:00]} 5. O-O {[%clk 0:02:59]}  Be7 {[%clk 0:03:01]} 6. Re1 {[%clk 0:02:58]}  b5 {[%clk 0:03:01]} 7. Bb3 {[%clk 0:02:58]}  d6 {[%clk 0:03:01]} 8. c3 {[%clk 0:02:56]}  O-O {[%clk 0:03:02]} 9. h3 {[%clk 0:02:55]}  Na5 {[%clk 0:03:01]} 10. Bc2 {[%clk 0:02:55]}  c5 {[%clk 0:03:02]} 11. d4 {[%clk 0:02:56]}  Qc7 {[%clk 0:03:01]} 12. d5 {[%clk 0:02:56]}  g6 {[%clk 0:02:52]} 13. Nbd2 {[%clk 0:02:56]}  Ne8 {[%clk 0:02:51]} 14. Nf1 {[%clk 0:02:56]}  Ng7 {[%clk 0:02:52]} 15. Ng3 {[%clk 0:02:56]}  Nb7 {[%clk 0:02:52]} 16. Bh6 {[%clk 0:02:55]}  Nd8 {[%clk 0:02:51]} 17. a4 {[%clk 0:02:55]}  Bb7 {[%clk 0:02:48]} 18. Qe2 {[%clk 0:02:52]}  c4 {[%clk 0:02:47]} 19. axb5 {[%clk 0:02:51]}  axb5 {[%clk 0:02:47]} 20. Rxa8 {[%clk 0:02:52]}  Bxa8 {[%clk 0:02:48]} 21. Ra1 {[%clk 0:02:52]}  Bb7 {[%clk 0:02:48]} 22. Qe3 {[%clk 0:02:52]}  f6 {[%clk 0:02:45]} 23. Ra7 {[%clk 0:02:47]}  Nf7 {[%clk 0:02:41]} 24. Bxg7 {[%clk 0:02:46]}  Kxg7 {[%clk 0:02:42]} 25. Nd2 {[%clk 0:02:40]}  Ra8 {[%clk 0:02:39]} 26. Nb1 {[%clk 0:02:36]}  Qb8 {[%clk 0:02:33]} 27. Rxa8 {[%clk 0:02:34]}  Bxa8 {[%clk 0:02:31]} 28. Na3 {[%clk 0:02:35]}  Bd8 {[%clk 0:02:22]} 29. Qf3 {[%clk 0:02:30]}  Bb7 {[%clk 0:02:11]} 30. Qg4 {[%clk 0:02:25]}  Bc8 {[%clk 0:02:07]} 31. Qe2 {[%clk 0:02:20]}  Bd7 {[%clk 0:02:04]} 32. Nf1 {[%clk 0:02:16]}  Bb6 {[%clk 0:02:04]} 33. Ne3 {[%clk 0:02:15]}  Bc5 {[%clk 0:02:02]} 34. Qd2 {[%clk 0:02:11]}  Qa7 {[%clk 0:01:57]} 35. Qc1 {[%clk 0:02:11]}  Nh6 {[%clk 0:01:28]} 36. Kh2 {[%clk 0:01:54]}  Ng8 {[%clk 0:01:26]} 37. g4 {[%clk 0:01:53]}  Ne7 {[%clk 0:01:20]} 38. Kg2 {[%clk 0:01:37]}  g5 {[%clk 0:01:18]} 39. Kf1 {[%clk 0:01:34]}  Ng6 {[%clk 0:01:17]} 40. Kg1 {[%clk 0:01:25]}  Nf4 {[%clk 0:01:16]} 41. Kh2 {[%clk 0:01:25]}  h5 {[%clk 0:01:13]} 42. Nf5+ {[%clk 0:01:22]}  Bxf5 {[%clk 0:01:12]} 43. gxf5 {[%clk 0:01:23]}  Bxf2 {[%clk 0:01:10]} 44. Nxb5 {[%clk 0:01:22]}  Qb6 {[%clk 0:01:11]} 45. Ba4 {[%clk 0:01:16]}  h4 {[%clk 0:01:07]} 46. Qd2 {[%clk 0:01:08]}  Bg3+ {[%clk 0:01:01]} 47. Kh1 {[%clk 0:01:08]}  Nxh3 {[%clk 0:00:57]} 48. Kg2 {[%clk 0:01:08]}  g4 {[%clk 0:00:50]} 49. Kf1 {[%clk 0:00:57]}  Qg1+ {[%clk 0:00:49]} 50. Ke2 {[%clk 0:00:57]}  Nf4+ {[%clk 0:00:49]} 51. Qxf4 {[%clk 0:00:56]}  Bxf4 {[%clk 0:00:45]} 52. Nxd6 {[%clk 0:00:55]}  Qe3+ {[%clk 0:00:45]} 53. Kf1 {[%clk 0:00:54]}  Bg3 {[%clk 0:00:43]} 54. Ne8+ {[%clk 0:00:52]}  Kf8 {[%clk 0:00:41]} 55. Kg2 {[%clk 0:00:52]}  Qf2+ {[%clk 0:00:41]} 56. Kh1 {[%clk 0:00:53]}  Qf1# {[%clk 0:00:41]} 0-1


[Site "https://www.chess.com"]

[Event "Titled Tuesday Blitz May 30 Late 2023"]
[White "Bruedigam, Martin"]
[Black "Kourkoulos-Arditis, Stamatis"]
[WhiteFideId "24608033"]
[BlackFideId "4221990"]
[WhiteElo "2331"]
[BlackElo "2400"]
[Result "0-1"]
[Round "06"]
[TimeControl "180+2"]
[Date "2023.05.31"]
[WhiteClock "0:01:38"]
[BlackClock "0:01:27"]

1. d4 {[%clk 0:03:00]}  c5 {[%clk 0:03:00]} 2. d5 {[%clk 0:03:00]}  Nf6 {[%clk 0:03:00]} 3. c4 {[%clk 0:03:00]}  d6 {[%clk 0:03:00]} 4. Nc3 {[%clk 0:03:00]}  g6 {[%clk 0:03:00]} 5. e4 {[%clk 0:03:00]}  Bg7 {[%clk 0:03:01]} 6. f3 {[%clk 0:03:01]}  O-O {[%clk 0:02:59]} 7. Be3 {[%clk 0:02:59]}  a6 {[%clk 0:02:55]} 8. a4 {[%clk 0:02:56]}  e6 {[%clk 0:02:41]} 9. Nge2 {[%clk 0:02:56]}  exd5 {[%clk 0:02:39]} 10. cxd5 {[%clk 0:02:57]}  h5 {[%clk 0:02:37]} 11. Qd2 {[%clk 0:02:43]}  Nbd7 {[%clk 0:02:36]} 12. Nc1 {[%clk 0:02:21]}  Rb8 {[%clk 0:02:32]} 13. Be2 {[%clk 0:02:16]}  Ne5 {[%clk 0:02:31]} 14. O-O {[%clk 0:02:14]}  Bd7 {[%clk 0:02:31]} 15. h3 {[%clk 0:02:11]}  b5 {[%clk 0:02:31]} 16. axb5 {[%clk 0:02:08]}  axb5 {[%clk 0:02:32]} 17. f4 {[%clk 0:02:05]}  Nc4 {[%clk 0:02:32]} 18. Bxc4 {[%clk 0:02:05]}  bxc4 {[%clk 0:02:33]} 19. N1e2 {[%clk 0:01:56]}  Nxe4 {[%clk 0:01:37]} 20. Nxe4 {[%clk 0:01:57]}  Rxb2 {[%clk 0:01:37]} 21. Qe1 {[%clk 0:01:51]}  Re8 {[%clk 0:01:29]} 22. Nxd6 {[%clk 0:01:38]}  Rxe3 {[%clk 0:01:28]} 23. Nxc4 {[%clk 0:01:38]}  Rexe2 {[%clk 0:01:27]} 24. Nxb2 {[%clk 0:01:38]}  Rxe1 {[%clk 0:01:27]} 0-1


[Site "https://www.chess.com"]

[Event "Titled Tuesday Blitz May 30 Late 2023"]
[White "Chylewski, Patryk"]
[Black "Pulpan, Jakub"]
[WhiteFideId "1186191"]
[BlackFideId "302759"]
[WhiteElo "2163"]
[BlackElo "2484"]
[Result "0-1"]
[Round "06"]
[TimeControl "180+2"]
[Date "2023.05.31"]
[WhiteClock "0:00:01"]
[BlackClock "0:01:50"]

1. e4 {[%clk 0:03:00]}  e5 {[%clk 0:02:59]} 2. Nf3 {[%clk 0:03:00]}  Nc6 {[%clk 0:03:00]} 3. d4 {[%clk 0:03:00]}  exd4 {[%clk 0:03:01]} 4. Bc4 {[%clk 0:03:00]}  Nf6 {[%clk 0:03:00]} 5. e5 {[%clk 0:03:00]}  d5 {[%clk 0:03:00]} 6. Bb5 {[%clk 0:03:00]}  Ne4 {[%clk 0:03:01]} 7. Nxd4 {[%clk 0:03:01]}  Bd7 {[%clk 0:03:01]} 8. Bxc6 {[%clk 0:03:01]}  bxc6 {[%clk 0:03:02]} 9. O-O {[%clk 0:03:02]}  Bc5 {[%clk 0:03:02]} 10. f3 {[%clk 0:03:03]}  Ng5 {[%clk 0:03:02]} 11. f4 {[%clk 0:03:03]}  Ne4 {[%clk 0:03:02]} 12. Be3 {[%clk 0:03:04]}  Qe7 {[%clk 0:03:02]} 13. Nd2 {[%clk 0:03:02]}  Nd6 {[%clk 0:03:00]} 14. Bf2 {[%clk 0:02:30]}  Nf5 {[%clk 0:02:57]} 15. Nxf5 {[%clk 0:02:23]}  Bxf5 {[%clk 0:02:55]} 16. Nb3 {[%clk 0:02:23]}  Bb6 {[%clk 0:02:39]} 17. a4 {[%clk 0:02:20]}  Be4 {[%clk 0:02:26]} 18. a5 {[%clk 0:02:16]}  Bxf2+ {[%clk 0:02:20]} 19. Rxf2 {[%clk 0:02:17]}  c5 {[%clk 0:02:18]} 20. a6 {[%clk 0:02:11]}  O-O {[%clk 0:02:16]} 21. Ra5 {[%clk 0:02:11]}  f6 {[%clk 0:02:13]} 22. exf6 {[%clk 0:02:02]}  Qxf6 {[%clk 0:02:14]} 23. Nxc5 {[%clk 0:01:55]}  Qxb2 {[%clk 0:02:09]} 24. Nxe4 {[%clk 0:01:29]}  dxe4 {[%clk 0:02:10]} 25. Qd5+ {[%clk 0:01:25]}  Kh8 {[%clk 0:02:08]} 26. Qb3 {[%clk 0:00:26]}  Qc1+ {[%clk 0:02:03]} 27. Rf1 {[%clk 0:00:26]}  Qd2 {[%clk 0:02:04]} 28. Rd5 {[%clk 0:00:24]}  Qe2 {[%clk 0:02:02]} 29. Rb5 {[%clk 0:00:11]}  Rad8 {[%clk 0:01:54]} 30. Rb7 {[%clk 0:00:01]}  e3 {[%clk 0:01:53]} 31. Rxc7 {[%clk 0:00:01]}  Rd1 {[%clk 0:01:50]} 0-1


[Site "https://www.chess.com"]

[Event "Titled Tuesday Blitz May 30 Late 2023"]
[White "Panesar Vedant"]
[Black "Ladan, Nicholas"]
[WhiteFideId "35033018"]
[BlackFideId "30918855"]
[WhiteElo "2347"]
[BlackElo "2167"]
[Result "1-0"]
[Round "06"]
[TimeControl "180+2"]
[Date "2023.05.31"]
[WhiteClock "0:00:44"]
[BlackClock "0:00:36"]

1. e4 {[%clk 0:03:00]}  e5 {[%clk 0:02:59]} 2. Nf3 {[%clk 0:03:00]}  Nc6 {[%clk 0:02:52]} 3. Bb5 {[%clk 0:03:00]}  a6 {[%clk 0:02:47]} 4. Ba4 {[%clk 0:02:59]}  Bc5 {[%clk 0:02:44]} 5. c3 {[%clk 0:02:56]}  Nge7 {[%clk 0:02:44]} 6. O-O {[%clk 0:02:55]}  Ba7 {[%clk 0:02:44]} 7. d4 {[%clk 0:02:55]}  Ng6 {[%clk 0:02:44]} 8. Bg5 {[%clk 0:02:52]}  f6 {[%clk 0:02:44]} 9. Be3 {[%clk 0:02:52]}  O-O {[%clk 0:02:39]} 10. Nbd2 {[%clk 0:02:52]}  d6 {[%clk 0:02:39]} 11. h3 {[%clk 0:02:45]}  Kh8 {[%clk 0:02:39]} 12. Re1 {[%clk 0:02:45]}  Bd7 {[%clk 0:02:32]} 13. Nf1 {[%clk 0:02:39]}  exd4 {[%clk 0:02:30]} 14. cxd4 {[%clk 0:02:40]}  f5 {[%clk 0:02:31]} 15. exf5 {[%clk 0:02:14]}  Bxf5 {[%clk 0:02:22]} 16. Ng3 {[%clk 0:02:12]}  Qf6 {[%clk 0:02:07]} 17. Nh5 {[%clk 0:02:02]}  Qf7 {[%clk 0:01:51]} 18. Ng5 {[%clk 0:02:00]}  Qg8 {[%clk 0:01:44]} 19. Bb3 {[%clk 0:01:58]}  d5 {[%clk 0:01:43]} 20. Ng3 {[%clk 0:01:57]}  Bd7 {[%clk 0:01:37]} 21. Qh5 {[%clk 0:01:56]}  Nf4 {[%clk 0:01:28]} 22. Bxf4 {[%clk 0:01:54]}  Rxf4 {[%clk 0:01:29]} 23. Bxd5 {[%clk 0:01:53]}  g6 {[%clk 0:01:22]} 24. Qh6 {[%clk 0:01:12]}  Qg7 {[%clk 0:01:22]} 25. Qxg7+ {[%clk 0:01:12]}  Kxg7 {[%clk 0:01:23]} 26. Bxc6 {[%clk 0:01:13]}  bxc6 {[%clk 0:01:14]} 27. Re7+ {[%clk 0:01:11]}  Kf6 {[%clk 0:01:10]} 28. Rxd7 {[%clk 0:01:03]}  Kxg5 {[%clk 0:01:09]} 29. Rd1 {[%clk 0:00:56]}  c5 {[%clk 0:00:50]} 30. dxc5 {[%clk 0:00:52]}  Bxc5 {[%clk 0:00:51]} 31. R7d5+ {[%clk 0:00:52]}  Kh4 {[%clk 0:00:43]} 32. Rxc5 {[%clk 0:00:53]}  Raf8 {[%clk 0:00:42]} 33. Rd2 {[%clk 0:00:46]}  a5 {[%clk 0:00:41]} 34. Rdc2 {[%clk 0:00:46]}  a4 {[%clk 0:00:40]} 35. R5c4 {[%clk 0:00:46]}  a3 {[%clk 0:00:40]} 36. Rxf4+ {[%clk 0:00:46]}  Rxf4 {[%clk 0:00:41]} 37. bxa3 {[%clk 0:00:46]}  c5 {[%clk 0:00:41]} 38. Rxc5 {[%clk 0:00:46]}  h5 {[%clk 0:00:40]} 39. Rb5 {[%clk 0:00:45]}  g5 {[%clk 0:00:37]} 40. Nf5+ {[%clk 0:00:44]}  Rxf5 {[%clk 0:00:36]} 41. Rxf5 {[%clk 0:00:44]}  g4 {[%clk 0:00:36]} 42. g3+ {[%clk 0:00:43]}  Kxh3 {[%clk 0:00:36]} 43. Rxh5# {[%clk 0:00:44]} 1-0


[Site "https://www.chess.com"]

[Event "Titled Tuesday Blitz May 30 Late 2023"]
[White "Jaracz, Pawel"]
[Black "Moral Garcia, Serafin"]
[WhiteFideId "1102222"]
[BlackFideId "2201925"]
[WhiteElo "2438"]
[BlackElo "2274"]
[Result "0-1"]
[Round "06"]
[TimeControl "180+2"]
[Date "2023.05.31"]
[WhiteClock "0:00:01"]
[BlackClock "0:00:20"]

1. d4 {[%clk 0:03:00]}  Nf6 {[%clk 0:02:59]} 2. c4 {[%clk 0:03:00]}  g6 {[%clk 0:02:59]} 3. Nc3 {[%clk 0:03:00]}  d5 {[%clk 0:02:59]} 4. Qb3 {[%clk 0:02:53]}  dxc4 {[%clk 0:02:59]} 5. Qxc4 {[%clk 0:02:54]}  Bg7 {[%clk 0:02:59]} 6. e4 {[%clk 0:02:54]}  O-O {[%clk 0:02:57]} 7. Be2 {[%clk 0:02:51]}  Nc6 {[%clk 0:02:54]} 8. Be3 {[%clk 0:02:49]}  e5 {[%clk 0:02:51]} 9. d5 {[%clk 0:02:41]}  Nd4 {[%clk 0:02:44]} 10. O-O-O {[%clk 0:02:16]}  Ne8 {[%clk 0:02:41]} 11. f4 {[%clk 0:02:07]}  Nd6 {[%clk 0:02:35]} 12. Qd3 {[%clk 0:02:07]}  Nxe2+ {[%clk 0:02:17]} 13. Ngxe2 {[%clk 0:02:07]}  Bg4 {[%clk 0:02:10]} 14. Rhf1 {[%clk 0:01:54]}  Re8 {[%clk 0:02:08]} 15. f5 {[%clk 0:01:52]}  gxf5 {[%clk 0:01:58]} 16. exf5 {[%clk 0:01:51]}  e4 {[%clk 0:01:58]} 17. Qc2 {[%clk 0:01:45]}  Bxf5 {[%clk 0:01:53]} 18. h3 {[%clk 0:01:17]}  Bg6 {[%clk 0:01:51]} 19. g4 {[%clk 0:01:17]}  Be5 {[%clk 0:01:34]} 20. Nf4 {[%clk 0:01:15]}  Nc4 {[%clk 0:01:28]} 21. Ng2 {[%clk 0:00:56]}  Nxe3 {[%clk 0:01:26]} 22. Nxe3 {[%clk 0:00:56]}  Qg5 {[%clk 0:01:22]} 23. Qd2 {[%clk 0:00:54]}  Rad8 {[%clk 0:01:16]} 24. h4 {[%clk 0:00:38]}  Qxh4 {[%clk 0:01:15]} 25. Nf5 {[%clk 0:00:38]}  Bxf5 {[%clk 0:01:05]} 26. Rxf5 {[%clk 0:00:38]}  Bg7 {[%clk 0:01:00]} 27. Rh5 {[%clk 0:00:21]}  Qf6 {[%clk 0:00:48]} 28. Qh2 {[%clk 0:00:19]}  Qg6 {[%clk 0:00:40]} 29. Rh1 {[%clk 0:00:13]}  h6 {[%clk 0:00:33]} 30. Ne2 {[%clk 0:00:12]}  e3 {[%clk 0:00:26]} 31. Nf4 {[%clk 0:00:06]}  Qf6 {[%clk 0:00:24]} 32. g5 {[%clk 0:00:03]}  hxg5 {[%clk 0:00:20]} 33. Ne2 {[%clk 0:00:01]}  Qxb2+ {[%clk 0:00:20]} 0-1


[Site "https://www.chess.com"]

[Event "Titled Tuesday Blitz May 30 Late 2023"]
[White "D`Arruda, Ricardo D."]
[Black "Tristan, Leonardo"]
[WhiteFideId "100692"]
[BlackFideId "113816"]
[WhiteElo "2529"]
[BlackElo "2461"]
[Result "0-1"]
[Round "06"]
[TimeControl "180+2"]
[Date "2023.05.31"]
[WhiteClock "0:01:11"]
[BlackClock "0:01:39"]

1. Nf3 {[%clk 0:02:31]}  d5 {[%clk 0:03:00]} 2. g3 {[%clk 0:02:30]}  Nf6 {[%clk 0:02:59]} 3. Bg2 {[%clk 0:02:30]}  Bf5 {[%clk 0:03:00]} 4. O-O {[%clk 0:02:31]}  e6 {[%clk 0:03:00]} 5. d3 {[%clk 0:02:31]}  Be7 {[%clk 0:03:01]} 6. Nh4 {[%clk 0:02:32]}  Bg4 {[%clk 0:03:01]} 7. h3 {[%clk 0:02:32]}  Bh5 {[%clk 0:03:01]} 8. g4 {[%clk 0:02:32]}  Nfd7 {[%clk 0:03:02]} 9. Nf3 {[%clk 0:02:32]}  Bg6 {[%clk 0:03:02]} 10. Nbd2 {[%clk 0:02:32]}  O-O {[%clk 0:03:02]} 11. e4 {[%clk 0:02:32]}  c6 {[%clk 0:02:58]} 12. Qe2 {[%clk 0:02:32]}  h6 {[%clk 0:02:58]} 13. b3 {[%clk 0:02:30]}  a5 {[%clk 0:02:58]} 14. a4 {[%clk 0:02:28]}  Na6 {[%clk 0:02:58]} 15. Bb2 {[%clk 0:02:28]}  Nb4 {[%clk 0:02:58]} 16. Rac1 {[%clk 0:02:26]}  Qb6 {[%clk 0:02:58]} 17. Ne5 {[%clk 0:02:24]}  Nxe5 {[%clk 0:02:56]} 18. Bxe5 {[%clk 0:02:24]}  Rfd8 {[%clk 0:02:46]} 19. Kh1 {[%clk 0:02:23]}  Qc5 {[%clk 0:02:22]} 20. Bb2 {[%clk 0:02:14]}  Na2 {[%clk 0:02:04]} 21. Ra1 {[%clk 0:02:13]}  Qxc2 {[%clk 0:01:43]} 22. Rxa2 {[%clk 0:02:13]}  Bb4 {[%clk 0:01:43]} 23. f3 {[%clk 0:01:28]}  dxe4 {[%clk 0:01:41]} 24. fxe4 {[%clk 0:01:12]}  Rxd3 {[%clk 0:01:39]} 25. Rf2 {[%clk 0:01:11]}  Rxd2 {[%clk 0:01:39]} 0-1


[Site "https://www.chess.com"]

[Event "Titled Tuesday Blitz May 30 Late 2023"]
[White "Bringas Gomez, Artai"]
[Black "Sieciechowicz, Marcin"]
[WhiteFideId "24534064"]
[BlackFideId "1130170"]
[WhiteElo "2179"]
[BlackElo "2302"]
[Result "0-1"]
[Round "06"]
[TimeControl "180+2"]
[Date "2023.05.31"]
[WhiteClock "0:00:20"]
[BlackClock "0:01:05"]

1. e4 {[%clk 0:03:00]}  e6 {[%clk 0:03:00]} 2. Nf3 {[%clk 0:03:01]}  d5 {[%clk 0:03:00]} 3. Nc3 {[%clk 0:03:01]}  Nf6 {[%clk 0:03:00]} 4. d3 {[%clk 0:02:59]}  dxe4 {[%clk 0:03:00]} 5. Nxe4 {[%clk 0:02:59]}  Nxe4 {[%clk 0:02:59]} 6. dxe4 {[%clk 0:03:00]}  Qxd1+ {[%clk 0:02:59]} 7. Kxd1 {[%clk 0:03:01]}  Bc5 {[%clk 0:02:59]} 8. Ke2 {[%clk 0:03:00]}  O-O {[%clk 0:02:59]} 9. Be3 {[%clk 0:03:00]}  Bxe3 {[%clk 0:02:57]} 10. Kxe3 {[%clk 0:03:01]}  Nd7 {[%clk 0:02:56]} 11. Bb5 {[%clk 0:03:01]}  c6 {[%clk 0:02:55]} 12. Be2 {[%clk 0:03:00]}  Nf6 {[%clk 0:02:53]} 13. Nd2 {[%clk 0:02:58]}  e5 {[%clk 0:02:52]} 14. Nc4 {[%clk 0:02:57]}  Re8 {[%clk 0:02:51]} 15. Nd6 {[%clk 0:02:56]}  Re7 {[%clk 0:02:51]} 16. Rad1 {[%clk 0:02:56]}  Be6 {[%clk 0:02:51]} 17. a4 {[%clk 0:02:55]}  Kf8 {[%clk 0:02:49]} 18. f3 {[%clk 0:02:52]}  Rd8 {[%clk 0:02:47]} 19. Nc4 {[%clk 0:02:49]}  Rxd1 {[%clk 0:02:45]} 20. Rxd1 {[%clk 0:02:48]}  Bxc4 {[%clk 0:02:46]} 21. Bxc4 {[%clk 0:02:49]}  Nd7 {[%clk 0:02:42]} 22. a5 {[%clk 0:02:46]}  Nf6 {[%clk 0:02:39]} 23. b4 {[%clk 0:02:44]}  Rd7 {[%clk 0:02:39]} 24. Rb1 {[%clk 0:02:42]}  a6 {[%clk 0:02:36]} 25. Be2 {[%clk 0:02:41]}  Ne8 {[%clk 0:02:29]} 26. h4 {[%clk 0:02:36]}  Ke7 {[%clk 0:02:28]} 27. c3 {[%clk 0:02:32]}  Nc7 {[%clk 0:02:28]} 28. Rd1 {[%clk 0:02:31]}  Rxd1 {[%clk 0:02:28]} 29. Bxd1 {[%clk 0:02:32]}  Kd6 {[%clk 0:02:25]} 30. Bb3 {[%clk 0:02:32]}  f6 {[%clk 0:02:23]} 31. Bg8 {[%clk 0:02:31]}  h6 {[%clk 0:02:24]} 32. Bc4 {[%clk 0:02:31]}  c5 {[%clk 0:02:23]} 33. g4 {[%clk 0:02:30]}  Kc6 {[%clk 0:02:20]} 34. f4 {[%clk 0:02:23]}  b6 {[%clk 0:01:58]} 35. axb6 {[%clk 0:02:21]}  Kxb6 {[%clk 0:01:58]} 36. g5 {[%clk 0:02:21]}  Nb5 {[%clk 0:01:51]} 37. gxh6 {[%clk 0:02:19]}  gxh6 {[%clk 0:01:50]} 38. fxe5 {[%clk 0:02:18]}  fxe5 {[%clk 0:01:50]} 39. Kd3 {[%clk 0:02:15]}  cxb4 {[%clk 0:01:48]} 40. cxb4 {[%clk 0:02:16]}  Nd4 {[%clk 0:01:49]} 41. Kc3 {[%clk 0:01:56]}  Nf3 {[%clk 0:01:42]} 42. h5 {[%clk 0:01:55]}  Ng5 {[%clk 0:01:40]} 43. Bd5 {[%clk 0:01:53]}  Nh3 {[%clk 0:01:38]} 44. Kc4 {[%clk 0:01:50]}  Nf4 {[%clk 0:01:38]} 45. Bf7 {[%clk 0:01:48]}  Kc6 {[%clk 0:01:39]} 46. Be8+ {[%clk 0:01:47]}  Kd6 {[%clk 0:01:38]} 47. Bf7 {[%clk 0:01:01]}  Ke7 {[%clk 0:01:38]} 48. Bg8 {[%clk 0:00:53]}  Nxh5 {[%clk 0:01:16]} 49. Kc5 {[%clk 0:00:53]}  Nf6 {[%clk 0:01:12]} 50. Bc4 {[%clk 0:00:51]}  Nxe4+ {[%clk 0:01:11]} 51. Kb6 {[%clk 0:00:52]}  h5 {[%clk 0:01:05]} 52. Kxa6 {[%clk 0:00:46]}  Nd6 {[%clk 0:01:05]} 53. Bf1 {[%clk 0:00:41]}  h4 {[%clk 0:01:04]} 54. b5 {[%clk 0:00:40]}  e4 {[%clk 0:01:04]} 55. b6 {[%clk 0:00:38]}  e3 {[%clk 0:01:04]} 56. b7 {[%clk 0:00:34]}  Nxb7 {[%clk 0:01:04]} 57. Kxb7 {[%clk 0:00:33]}  h3 {[%clk 0:01:05]} 58. Bxh3 {[%clk 0:00:30]}  e2 {[%clk 0:01:05]} 59. Bg2 {[%clk 0:00:31]}  e1=Q {[%clk 0:01:05]} 60. Bc6 {[%clk 0:00:28]}  Qb4+ {[%clk 0:01:04]} 61. Kc7 {[%clk 0:00:25]}  Qc5 {[%clk 0:01:04]} 62. Kb7 {[%clk 0:00:23]}  Kd6 {[%clk 0:01:04]} 63. Bh1 {[%clk 0:00:20]}  Qc7+ {[%clk 0:01:03]} 64. Ka8 {[%clk 0:00:20]}  Kc5 {[%clk 0:01:04]} 65. Bc6 {[%clk 0:00:20]}  Kb6 {[%clk 0:01:05]} 66. Bb7 {[%clk 0:00:20]}  Qd8+ {[%clk 0:01:04]} 67. Bc8 {[%clk 0:00:20]}  Qxc8# {[%clk 0:01:05]} 0-1


[Site "https://www.chess.com"]